[Event "1st FIDE Olympiad DIS 2023"]
[Site "Belgrade"]
[Date "2023.02.01"]
[Round "3.8"]
[White "Saltik, Suleyman"]
[Black "Zhukovskaya, Nina"]
[Result "1-0"]
[ECO "B07"]
[WhiteElo "1687"]
[BlackElo "1474"]
[Annotator "NA RC COMBH"]
[PlyCount "57"]
[EventDate "2023.01.30"]
[EventType "team-tourn"]
[EventCountry "SRB"]
[SourceTitle "playchess.com"]
[Source "ChessBase"]
[SourceQuality "1"]
[WhiteTeam "Turkey"]
[BlackTeam "Kazakhstan"]
[WhiteTeamCountry "TUR"]
[BlackTeamCountry "KAZ"]
[TimeControl "40/5400+30:1800+30"]

1. e4 {[%emt 0:00:13]} g6 {[%emt 0:00:32]} 2. d4 {[%emt 0:00:11]} d6 {[%emt 0:00:21]} 3. Nc3 {[%emt 0:00:16]} Bg7 {[%emt 0:00:54]} 4. Be3 {[%emt 0:00:19]} Nf6 {[%emt 0:00:27]} 5. Qd2 {[%emt 0:00:20]} O-O {[%emt 0:00:34]} 6. O-O-O {[%emt 0:00:25]} Nbd7 {[%emt 0:07:15]} 7. f3 {[%emt 0:04:35]} c6 {[%emt 0:00:40]} 8. g4 {[%emt 0:02:44]} b5 {[%emt 0:01:32]} 9. h4 {[%emt 0:01:13]} Ne8 {[%emt 0:07:55]} 10. h5 {[%emt 0:02:28]} e5 {[%emt 0:01:41]} 11. hxg6 {[%emt 0:02:18]} fxg6 {[%emt 0:00:52]} 12. Qh2 {[%emt 0:01:36]} Kf7 {[%emt 0:08:59]} 13. d5 {[%emt 0:07:43]} b4 {[%emt 0:05:50]} 14. dxc6 {[%emt 0:00:36]} bxc3 {[%emt 0:01:07]} 15. Bc4+ {[%emt 0:00:15]} Ke7 {[%emt 0:02:37]} 16. cxd7 {[%emt 0:04:31]} cxb2+ {[%emt 0:00:52]} 17. Kb1 {[%emt 0:00:45]} Qxd7 {[%emt 0:06:34]} 18. Bg5+ {[%emt 0:01:58]} Nf6 {[%emt 0:02:51]} 19. Qxh7 {[%emt 0:00:48]} Kd8 {[%emt 0:02:41]} 20. Qxg6 {[%emt 0:02:36]} Kc7 {[%emt 0:01:12]} 21. Ne2 {[%emt 0:06:24]} a5 {[%emt 0:02:15]} 22. Nc3 {[%emt 0:04:58]} Bb7 {[%emt 0:06:49]} 23. Nb5+ {[%emt 0:01:38]} Kb8 {[%emt 0:01:57]} 24. Rxd6 {[%emt 0:01:30]} Qe7 {[%emt 0:01:03]} 25. Rh7 {[%emt 0:12:17]} Rh8 {[%emt 0:10:01]} 26. Rxh8+ {[%emt 0:00:00]} Bxh8 {[%emt 0:00:23]} 27. Bxf6 {[%emt 0:00:00]} Bxf6 {[%emt 0:00:44]} 28. Qg8+ {[%emt 0:00:00]} Bc8 {[%emt 0:01:37]} 29. Rb6+ {[%emt 0:00:00]} 1-0

[Event "1st FIDE Olympiad DIS 2023"]
[Site "Belgrade"]
[Date "2023.02.01"]
[Round "3.9"]
[White "Jankunas, Tomas"]
[Black "Zambo, Zoltan Istvan"]
[Result "1/2-1/2"]
[ECO "B22"]
[WhiteElo "2127"]
[BlackElo "2301"]
[Annotator "TA"]
[PlyCount "57"]
[EventDate "2023.01.30"]
[EventType "team-tourn"]
[EventCountry "SRB"]
[SourceTitle "playchess.com"]
[Source "ChessBase"]
[SourceQuality "1"]
[WhiteTeam "Lithuania"]
[BlackTeam "Hungary"]
[WhiteTeamCountry "LTU"]
[BlackTeamCountry "HUN"]
[TimeControl "40/5400+30:1800+30"]

{[%evp 12,57,16,20,33,18,30,0,4,9,7,15,6,13,0,12,16,0,40,41,40,25,27,0,0,-7,-12,-10,0,0,0,0,0,0,0,-10,-14,-8,0,-8,27,0,12,18,12,0,0,0]} 1. e4 {[%emt 0:00:14]} c5 {[%emt 0:00:21]} 2. c3 {[%emt 0:00:12]} d5 {[%emt 0:00:33]} 3. exd5 {[%emt 0:00:09]} Qxd5 {[%emt 0:00:17]} 4. d4 {[%emt 0:00:26]} Nf6 {[%emt 0:00:28]} 5. Nf3 {[%emt 0:00:43]} e6 {[%emt 0:00:39]} 6. Be3 {[%emt 0:00:53]} cxd4 {[%emt 0:00:46]} 7. cxd4 {[%emt 0:00:27]} Bd7 {[%emt 0:00:35] B22: Sicilian: 2 c3.} 8. Nc3 {[%emt 0:02:45]} Bb4 {[%emt 0:00:42]} 9. Bd3 {[%emt 0:04:51]} Bb5 {[%emt 0:03:14]} 10. O-O {[%emt 0:03:15][%csl LRb5,LRd5]} Bxc3 {[%emt 0:01:40]} 11. bxc3 {[%emt 0:06:22][%cal Oc3c4] [#] Strongly threatening c4!} O-O {[%emt 0:02:30]} 12. Rb1 {[%emt 0:08:11]} Bxd3 {[%emt 0:16:01]} 13. Qxd3 {[%emt 0:00:06]} Rc8 {[%emt 0:01:14]} 14. Rfc1 {[%emt 0:25:43] [#]} Nbd7 $146 {[%emt 0:25:18]} ({Predecessor:} 14... b6 15. c4 Qa5 16. a3 Nbd7 17. Rb5 Qa6 18. Rg5 Rd8 19. Qb3 Ne4 20. Rg4 Ndf6 {0-1 Brandl,F (2073)-Loder,W (2099) Regionalliga SO 0910 2009 (8.3)}) 15. c4 {[%emt 0:04:41]} Qd6 {[%emt 0:02:25]} 16. Qe2 {[%emt 0:06:54]} (16. Rxb7 $2 {loses.} Nc5 17. Qb1 Nxb7 18. Qxb7 Rcb8 $19) 16... b6 {[%emt 0:06:19]} 17. Rd1 {[%emt 0:04:29]} Qa3 {[%emt 0:07:11]} 18. Bg5 {[%emt 0:02:16]} h6 {[%emt 0:01:04]} 19. Bf4 {[%emt 0:03:26]} Qa6 {[%emt 0:01:13]} 20. Rbc1 {[%emt 0:03:13][%cal Bb1c1,Bc1c3,Bc3g3][%mdl 32]} Rd8 {[%emt 0:11:03]} 21. Bc7 {[%emt 0:03:49]} Re8 {[%emt 0:00:20]} 22. Be5 {[%emt 0:00:52]} Rac8 {[%emt 0:00:28]} 23. Bxf6 {[%emt 0:00:36]} Nxf6 {[%emt 0:00:09]} 24. Ne5 {[%emt 0:00:13]} Red8 {[%emt 0:01:10]} 25. Rc3 {[%emt 0:07:15]} Qb7 {[%emt 0:01:44]} 26. Rg3 {[%emt 0:01:07]} Qe4 {[%emt 0:01:06] The position is equal.} 27. Re3 {[%emt 0:00:24]} Qb7 {[%emt 0:01:25]} 28. Rg3 {[%emt 0:01:13]} Qe4 {[%emt 0:00:07]} 29. Re3 $1 {[%emt 0:00:28] Weighted Error Value: White=0.08 (flawless) /Black=0.06 (flawless)} 1/2-1/2

[Event "1st FIDE Olympiad DIS 2023"]
[Site "Belgrade"]
[Date "2023.02.01"]
[Round "3.9"]
[White "Ibraimov, Kubanychbek"]
[Black "Gora, Tapiwa"]
[Result "0-1"]
[ECO "B01"]
[WhiteElo "1316"]
[BlackElo "1959"]
[Annotator "TA"]
[PlyCount "78"]
[EventDate "2023.01.30"]
[EventType "team-tourn"]
[EventCountry "SRB"]
[SourceTitle "playchess.com"]
[Source "ChessBase"]
[SourceQuality "1"]
[WhiteTeam "Kyrgyzstan"]
[BlackTeam "Zimbabwe"]
[WhiteTeamCountry "KGZ"]
[BlackTeamCountry "ZIM"]
[TimeControl "40/5400+30:1800+30"]

{[%evp 9,78,0,-5,-4,0,0,0,0,0,-22,-20,-20,0,-47,8,-33,131,146,168,-22,122,124,235,235,244,-117,-120,-339,-256,-268,-263,-272,-268,-268,-262,-275,-273,-256,-262,-295,-230,-197,-200,-216,-188,-289,-304,-274,-249,-266,-266,-259,-257,-249,-223,-286,-295,-283,-277,-374,-372,-1297,-1305,-1250,-1232,-1331,-1345,-1345,-1184,-1116,-1112]} 1. e4 {[%emt 0:00:08]} d5 {[%emt 0:00:26]} 2. exd5 {[%emt 0:00:20]} Nf6 {[%emt 0:00:10]} 3. c4 {[%emt 0:00:13]} e6 {[%emt 0:00:22]} 4. dxe6 {[%emt 0:00:41]} Bxe6 {[%emt 0:00:02]} 5. d3 {[%emt 0:00:37]} Nc6 {[%emt 0:00:27]} 6. Nf3 {[%emt 0:00:21] B01: Scandinavian Defence.} Bb4+ {[%emt 0:00:53]} 7. Nc3 {[%emt 0:00:20]} Qe7 {[%emt 0:00:18]} 8. Be2 {[%emt 0:00:28] The position is equal.} O-O-O {[%emt 0:00:11]} 9. Qc2 {[%emt 0:00:57]} Bf5 {[%emt 0:02:12][%mdl 1024] Black has compensation.} 10. O-O {[%emt 0:00:49]} Rhe8 {[%emt 0:03:24] [#]} 11. Re1 $146 {[%emt 0:00:51]} (11. Be3 $11 {should be considered.}) ({Predecessor:} 11. Be3 Bxc3 12. Qxc3 Ng4 13. Nd4 Rxd4 14. Bxd4 Qxe2 15. Rae1 Nxd4 16. Qa5 Re5 17. Qb4 c5 18. Qa5 Nc6 {0-1 Roth,J (2174)-Holzhaeuer,M (2347) Oberliga Wuerttemberg 9900 1999}) 11... Bc5 {[%emt 0:00:40]} (11... Qd6 $1 $15) 12. Bg5 {[%emt 0:01:04]} Nb4 $2 {[%emt 0:02:15]} (12... Bxf2+ $15 13. Kxf2 Qc5+ 14. Kf1 (14. d4 $2 Nxd4 15. b4 Qxb4 $19) 14... Ng4) 13. Qb3 $16 {[%emt 0:01:30]} h6 {[%emt 0:01:13] [#]} 14. a3 $2 {[%emt 0:04:37]} (14. Bf1 $1 $18 Qd6 15. Rxe8 Rxe8 16. Bh4) 14... Nc6 {[%emt 0:02:43]} (14... Nxd3 $2 15. Bxd3 Bxf2+ 16. Kh1 (16. Kxf2 Qc5+ 17. Be3 Ng4+ 18. Kg3 Nxe3 $16) 16... Bxe1 17. Bxf5+ Kb8 18. Be4 $18 (18. Rxe1 $2 Qxe1+ 19. Ng1 hxg5 $19)) (14... hxg5 $11 15. axb4 Bxf2+ {[%mdl 64] Decoy} 16. Kxf2 Qe3+ 17. Kf1 Bxd3) 15. Nd5 {[%emt 0:01:11]} Bxf2+ {[%emt 0:10:32]} (15... Rxd5 $16 16. cxd5 Bxf2+ {[%mdl 64] Decoy} 17. Kxf2 Ng4+ 18. Kf1 (18. Kg1 Qc5+ 19. d4 Nxd4 $17) 18... hxg5) 16. Kxf2 $18 {[%emt 0:00:42]} Qc5+ {[%emt 0:00:03]} 17. Kf1 $2 {[%emt 0:02:25]} (17. Be3 $2 Rxe3 18. d4 (18. Nxe3 Ng4+ 19. Kg3 Qd6+ {[%mdl 64] Skewer, Double Attack} 20. Kh4 g5+ 21. Nxg5 hxg5+ 22. Kxg5 Rg8+ 23. Kxf5 Qe5#) 18... Ng4+ 19. Kf1 Qxd5 20. cxd5 Rxb3 $19) ({Only move:} 17. d4 $1 $18 {[%cal Rd4c5]} Nxd4 18. Nxd4 hxg5 19. Rad1) 17... hxg5 $17 {[%emt 0:00:22] Black is more active.} 18. Qb5 $2 {[%emt 0:02:06] This move loses the game for White.} (18. Nxf6 $17 {was necessary.} gxf6 19. Qb5 Qxb5 20. cxb5) 18... Qxb5 {[%emt 0:05:06][%mdl 64] [#] Deflection} 19. cxb5 {[%emt 0:00:13] Hoping for Nxf6.} Nxd5 {[%emt 0:00:10][%cal Bf6d5,Bd5e3,Be3c2][%mdl 32]} 20. bxc6 {[%emt 0:00:38]} Ne3+ {[%emt 0:00:09]} (20... bxc6 21. Kf2 $17) 21. Kf2 {[%emt 0:00:16]} Nc2 {[%emt 0:00:21]} (21... bxc6 22. d4 Kb7 23. Bf1 Ng4+ 24. Kg1 $17) (21... Bxd3 22. Nxg5 Bxe2 23. cxb7+ Kxb7 24. Rxe2 Ng4+ 25. Ke1 $11) 22. cxb7+ {[%emt 0:01:35]} Kxb7 {[%emt 0:00:48][%cal Bc8b7,Bb7b6,Bb6b5][%mdl 32]} 23. Nxg5 {[%emt 0:01:13]} Nxa1 {[%emt 0:02:02]} ({Weaker is} 23... Bxd3 24. Bf3+ Kb6 25. Rxe8 Rxe8 26. Rd1 $14) 24. Rxa1 {[%emt 0:02:17]} Bxd3 {[%emt 0:00:14]} 25. Bf3+ {[%emt 0:00:23]} Kb6 {[%emt 0:01:47] White must now prevent ...f6.} 26. Nxf7 {[%emt 0:00:28]} Rd4 {[%emt 0:02:21]} 27. b4 {[%emt 0:04:17]} (27. Re1 $142 Rxe1 28. Kxe1) 27... Bc4 $19 {[%emt 0:01:16]} 28. Ng5 {[%emt 0:00:21]} Bd5 {[%emt 0:00:04]} 29. Bxd5 {[%emt 0:03:44]} Rxd5 {[%emt 0:00:02][%mdl 4096] Endgame KRR-KRN} 30. Nf3 {[%emt 0:00:13]} Kb5 {[%emt 0:00:35]} 31. Rc1 {[%emt 0:01:06]} Re7 {[%emt 0:01:14]} 32. Rc3 {[%emt 0:00:36]} a5 {[%emt 0:02:58]} 33. bxa5 {[%emt 0:01:17]} c5 {[%emt 0:03:24][%cal Bc7c5,Bc5c4][%mdl 32]} (33... Kxa5 $2 {perishes.} 34. h4 $19) 34. h4 {[%emt 0:01:43]} c4 {[%emt 0:00:29]} (34... Kxa5 $2 {is the wrong capture.} 35. g4 $19) 35. Ne1 $2 {[%emt 0:01:29]} (35. Rc1) 35... Rd2+ {[%emt 0:00:05] Black is clearly winning.} 36. Kf1 {[%emt 0:01:10]} Rd1 {[%emt 0:00:02]} 37. a6 {[%emt 0:00:30]} Rdxe1+ {[%emt 0:00:24]} 38. Kf2 {[%emt 0:00:19]} R1e2+ {[%emt 0:00:13]} 39. Kf3 {[%emt 0:00:16]} Rd2 {[%emt 0:00:03] Weighted Error Value: White=0.66/Black=0.32} 0-1

[Event "1st FIDE Olympiad DIS 2023"]
[Site "Belgrade"]
[Date "2023.02.01"]
[Round "3.10"]
[White "Paal-Szucs, Attila"]
[Black "Moldovanovic, Dragan"]
[Result "1-0"]
[ECO "C14"]
[WhiteElo "2141"]
[BlackElo "2019"]
[Annotator "TA"]
[PlyCount "83"]
[EventDate "2023.01.30"]
[EventType "team-tourn"]
[EventCountry "SRB"]
[SourceTitle "playchess.com"]
[Source "ChessBase"]
[SourceQuality "1"]
[WhiteTeam "Hungary"]
[BlackTeam "Serbia"]
[WhiteTeamCountry "HUN"]
[BlackTeamCountry "SRB"]
[TimeControl "40/5400+30:1800+30"]

{[%evp 15,83,12,20,13,13,12,22,8,12,0,46,48,78,29,102,102,97,90,87,97,99,92,93,94,134,61,51,57,58,56,78,83,99,105,122,119,149,172,157,68,68,40,56,52,56,34,64,57,198,182,383,364,550,538,744,743,828,806,829,806,752,721,635,565,512,458,847,331,12842,12842]} 1. e4 {[%emt 0:00:21]} e6 {[%emt 0:00:05]} 2. d4 {[%emt 0:00:15]} d5 {[%emt 0:00:32]} 3. Nc3 {[%emt 0:00:19]} Nf6 {[%emt 0:00:28]} 4. Bg5 {[%emt 0:00:17]} Be7 {[%emt 0:00:22]} 5. e5 {[%emt 0:00:15]} Nfd7 {[%emt 0:00:25]} 6. Bxe7 {[%emt 0:00:18]} Qxe7 {[%emt 0:00:14]} 7. Qd2 {[%emt 0:00:56]} a6 {[%emt 0:00:23]} 8. Nd1 {[%emt 0:00:09]} c5 {[%emt 0:00:32]} 9. c3 {[%emt 0:00:10] C14: French: Classical System: 4 Bg5 Be7 main line.} Nc6 {[%emt 0:00:25]} 10. f4 {[%emt 0:00:18]} f6 {[%emt 0:02:37]} 11. Nf3 {[%emt 0:00:16] The position is equal.} O-O {[%emt 0:00:32]} 12. Bd3 {[%emt 0:00:40]} b5 {[%emt 0:02:45]} (12... cxd4 $11 13. cxd4 Qb4) 13. O-O $14 {[%emt 0:01:26]} Bb7 {[%emt 0:04:29]} 14. Nf2 {[%emt 0:02:13] [#]} (14. exf6 $16 gxf6 15. Re1) 14... Rac8 $146 {[%emt 0:04:52]} (14... f5 $11) ({Predecessor:} 14... fxe5 15. fxe5 Rac8 16. Rad1 cxd4 17. cxd4 Nb6 18. b3 Qb4 19. Qg5 Qe7 20. Qg4 g6 {1-0 Farkas,O (1986)-La Barbera,M (1667) Budapest Rakosmente op 19th 2021 (2)}) 15. exf6 $16 {[%emt 0:03:37] White is more active.} Nxf6 {[%emt 0:00:46]} 16. Rae1 {[%emt 0:00:08]} cxd4 {[%emt 0:08:49]} 17. cxd4 {[%emt 0:01:11]} Qb4 {[%emt 0:02:12]} 18. Qxb4 {[%emt 0:03:04]} ({But not} 18. Rxe6 $6 Qxd2 19. Nxd2 Nxd4 $11) 18... Nxb4 {[%emt 0:00:20]} 19. Bb1 {[%emt 0:01:10] Wards off Ne4} Ne4 {[%emt 0:11:00][%mdl 64] [#] Deflection} 20. Nxe4 {[%emt 0:02:18]} (20. g3 $16) 20... dxe4 $14 {[%emt 0:03:13]} 21. Bxe4 {[%emt 0:00:00]} Bxe4 {[%emt 0:03:15]} 22. Rxe4 {[%emt 0:00:00]} Nxa2 {[%emt 0:01:07]} 23. g3 {[%emt 0:00:00]} Rc6 {[%emt 0:01:12]} 24. Rfe1 {[%emt 0:00:09]} Rd8 {[%emt 0:02:14]} 25. Rxe6 {[%emt 0:00:25]} Rxe6 {[%emt 0:00:07]} 26. Rxe6 $16 {[%emt 0:00:16][%mdl 4096] Endgame KRN-KRN} Nb4 {[%emt 0:00:10]} 27. Re4 {[%emt 0:03:21]} (27. Kf2 $16) 27... a5 $14 {[%emt 0:01:33]} 28. Ng5 {[%emt 0:05:37]} h6 {[%emt 0:01:10]} 29. Ne6 {[%emt 0:00:15]} Rd6 {[%emt 0:00:24]} 30. f5 {[%emt 0:03:08]} (30. Nc7 $5 {[%cal Rc7b5]}) 30... Kf7 {[%emt 0:00:48]} 31. Rg4 {[%emt 0:02:02]} Kf6 {[%emt 0:08:38] Black cannot hold the game after this.} (31... h5 $1 $14 32. Rxg7+ Kf6) 32. Nxg7 $18 {[%emt 0:00:18] [#] Hoping for Ne8+.} (32. Rxg7 $2 {loses.} Rxe6 33. Rb7 (33. fxe6 $2 Kxg7 34. Kf2 Nd3+ 35. Ke3 Nxb2 $19) 33... Kxf5 34. Rxb5+ Ke4 35. Rxa5 Rb6 $19) 32... Rd7 $2 {[%emt 0:01:05]} (32... Rc6 {was called for.} 33. Rg6+ Ke7) 33. Rg6+ {[%emt 0:00:32]} Kf7 {[%emt 0:00:08]} (33... Ke7 $142 34. Rxh6 Rxd4) 34. Ne6 {[%emt 0:00:22]} Rd5 {[%emt 0:03:48]} 35. g4 {[%emt 0:02:30]} Nc2 {[%emt 0:01:12]} 36. Rxh6 {[%emt 0:00:41]} Nxd4 {[%emt 0:00:44]} 37. Ng5+ {[%emt 0:02:16]} Kg8 {[%emt 0:03:14]} 38. Rg6+ {[%emt 0:03:58]} Kf8 {[%emt 0:01:07]} 39. Nh7+ {[%emt 0:01:20]} Kf7 {[%emt 0:00:22]} 40. Rb6 {[%emt 0:01:31] Rb7+ would be deadly.} Rd7 {[%emt 0:08:08] Prevents Rb7.} (40... Nxf5 $142 41. Ng5+ Ke7 42. gxf5 Rxf5) 41. f6 $2 {[%emt 0:32:17]} (41. Ng5+ Kg8 42. f6) 41... Ra7 $2 {[%emt 0:32:56]} (41... Ne6 42. Kf2 Rd2+ 43. Kg3 Rxb2 44. Rb7+ Kg6) 42. Ng5+ {[%emt 0:01:02] Weighted Error Value: White=0.14 (very precise) /Black=0.39} 1-0

[Event "1st FIDE Olympiad DIS 2023"]
[Site "Belgrade"]
[Date "2023.02.01"]
[Round "3.10"]
[White "CHIKAFU, ONAI"]
[Black "Arstanbekov, Dzhanysh"]
[Result "1/2-1/2"]
[ECO "B70"]
[WhiteElo "1494"]
[BlackElo "1621"]
[Annotator "NA RC COMBH"]
[PlyCount "145"]
[EventDate "2023.01.30"]
[EventType "team-tourn"]
[EventCountry "SRB"]
[SourceTitle "playchess.com"]
[Source "ChessBase"]
[SourceQuality "1"]
[WhiteTeam "Zimbabwe"]
[BlackTeam "Kyrgyzstan"]
[WhiteTeamCountry "ZIM"]
[BlackTeamCountry "KGZ"]
[TimeControl "40/5400+30:1800+30"]

1. e4 {[%emt 0:00:26]} c5 {[%emt 0:00:26]} 2. Nf3 {[%emt 0:00:19]} d6 {[%emt 0:00:41]} 3. d4 {[%emt 0:00:32]} cxd4 {[%emt 0:00:19]} 4. Nxd4 {[%emt 0:00:15]} Nf6 {[%emt 0:00:16]} 5. Nc3 {[%emt 0:00:39]} g6 {[%emt 0:00:17]} 6. f3 {[%emt 0:00:47]} Bg7 {[%emt 0:00:44]} 7. Bc4 {[%emt 0:00:35]} O-O {[%emt 0:00:30]} 8. O-O {[%emt 0:00:30]} Nc6 {[%emt 0:01:10]} 9. Kh1 {[%emt 0:00:31]} Qc7 {[%emt 0:00:35]} 10. Bb3 {[%emt 0:02:27]} a6 {[%emt 0:00:30]} 11. Be3 {[%emt 0:00:30]} Bd7 {[%emt 0:02:01]} 12. Qd2 {[%emt 0:00:45]} Rfe8 {[%emt 0:02:07]} 13. Rad1 {[%emt 0:00:51]} Ne5 {[%emt 0:00:30]} 14. Nde2 {[%emt 0:00:30]} b5 {[%emt 0:00:30]} 15. Nf4 {[%emt 0:00:30]} Bc6 {[%emt 0:09:01]} 16. Ncd5 {[%emt 0:01:13]} Nxd5 {[%emt 0:00:30]} 17. Nxd5 {[%emt 0:00:30]} Bxd5 {[%emt 0:00:30]} 18. Qxd5 {[%emt 0:00:30]} Rf8 {[%emt 0:00:30]} 19. c3 {[%emt 0:00:30]} Rac8 {[%emt 0:00:30]} 20. Bg5 {[%emt 0:00:30]} h6 {[%emt 0:00:30]} 21. Bh4 {[%emt 0:00:30]} g5 {[%emt 0:00:30]} 22. Bf2 {[%emt 0:00:30]} Nc4 {[%emt 0:08:47]} 23. Rb1 {[%emt 0:02:31]} Rfd8 {[%emt 0:01:23]} 24. Rfd1 {[%emt 0:01:03]} e6 {[%emt 0:00:40]} 25. Qd3 {[%emt 0:00:38]} d5 {[%emt 0:00:30]} 26. exd5 {[%emt 0:00:30]} Rxd5 {[%emt 0:00:30]} 27. Qe2 {[%emt 0:00:30]} Rcd8 {[%emt 0:00:30]} 28. Rxd5 {[%emt 0:00:30]} Rxd5 {[%emt 0:00:30]} 29. Bxc4 {[%emt 0:00:30]} Qxc4 {[%emt 0:10:31]} 30. Qxc4 {[%emt 0:01:18]} bxc4 {[%emt 0:00:30]} 31. Kg1 {[%emt 0:00:30]} Rd2 {[%emt 0:00:30]} 32. Kf1 {[%emt 0:00:30]} e5 {[%emt 0:00:30]} 33. Ke1 {[%emt 0:00:30]} Rc2 {[%emt 0:10:56]} 34. Kf1 {[%emt 0:01:07]} f5 {[%emt 0:01:48]} 35. Be1 {[%emt 0:03:05]} e4 36. fxe4 {[%emt 0:00:00]} fxe4 {[%emt 0:01:56]} 37. a4 {[%emt 0:00:00]} Be5 {[%emt 0:02:09]} 38. h3 {[%emt 0:00:00]} Kf7 {[%emt 0:05:48]} 39. b4 {[%emt 0:00:00]} cxb3 {[%emt 0:02:00]} 40. Rxb3 {[%emt 0:00:35]} h5 {[%emt 0:07:31]} 41. Rb6 {[%emt 0:29:51]} h4 {[%emt 0:30:04]} 42. Rxa6 {[%emt 0:00:24]} e3 {[%emt 0:00:00]} 43. Ra5 {[%emt 0:01:27]} Ke6 {[%emt 0:01:43]} 44. Ra8 {[%emt 0:00:42]} e2+ {[%emt 0:00:15]} 45. Kg1 {[%emt 0:00:31]} Rc1 {[%emt 0:00:05]} 46. Re8+ {[%emt 0:00:38]} Kf5 {[%emt 0:00:41]} 47. Rxe5+ {[%emt 0:00:42]} Kxe5 {[%emt 0:00:03]} 48. Kf2 {[%emt 0:00:25]} Rc2 {[%emt 0:00:30]} 49. Ke3 {[%emt 0:00:19]} Ra2 {[%emt 0:01:32]} 50. Bd2 {[%emt 0:00:33]} e1=Q+ {[%emt 0:03:05]} 51. Bxe1 {[%emt 0:00:15]} Rxg2 {[%emt 0:01:32]} 52. Kf3 {[%emt 0:00:42]} Ra2 {[%emt 0:00:53]} 53. Kg4 {[%emt 0:00:34]} Kf6 {[%emt 0:00:03]} 54. Kh5 {[%emt 0:01:28]} Rxa4 {[%emt 0:01:16]} 55. Bd2 {[%emt 0:00:29]} Ra5 {[%emt 0:00:25]} 56. Be3 {[%emt 0:00:30]} Rf5 {[%emt 0:08:43]} 57. c4 {[%emt 0:00:48]} Rf3 {[%emt 0:01:22]} 58. Bxg5+ {[%emt 0:01:17]} Kf5 {[%emt 0:00:02]} 59. Kxh4 {[%emt 0:00:10]} Rc3 {[%emt 0:00:28]} 60. c5 {[%emt 0:01:53]} Rc4+ {[%emt 0:00:27]} 61. Kh5 {[%emt 0:00:41]} Rxc5 {[%emt 0:00:18]} 62. h4 {[%emt 0:00:29]} Rc8 {[%emt 0:00:55]} 63. Kh6 {[%emt 0:00:25]} Rc6+ {[%emt 0:00:25]} 64. Kg7 {[%emt 0:00:31]} Rc7+ {[%emt 0:00:19]} 65. Kf8 {[%emt 0:01:05]} Kg6 {[%emt 0:00:30]} 66. Ke8 {[%emt 0:00:46]} Kf5 {[%emt 0:00:48]} 67. Bd8 {[%emt 0:00:33]} Rh7 {[%emt 0:00:06]} 68. Kf8 {[%emt 0:00:46]} Ra7 {[%emt 0:00:25]} 69. Bg5 {[%emt 0:00:34]} Kg6 {[%emt 0:00:24]} 70. Ke8 {[%emt 0:00:29]} Rh7 {[%emt 0:00:22]} 71. Bd8 {[%emt 0:00:52]} Kf5 {[%emt 0:00:04]} 72. Bg5 {[%emt 0:00:32]} Ke6 {[%emt 0:00:02]} 73. Kf8 {[%emt 0:00:29]} 1/2-1/2